bitfinex-derivatives/quotes_SOLF0:USTF0_20250211
["timestamp","ask_amount","ask_price","bid_price","bid_amount"]
[1739234523194,4.9366,202.54,202.38,6.58875184]
[1739234523584,0.03266136,202.5,202.45,0.0329489]
[1739234523990,0.03266136,202.5,202.45,14.82419332]
[1739234525293,0.03266136,202.5,202.45,0.0329489]
[1739234529696,0.03266136,202.5,202.45,14.82419332]
[1739234530091,0.03266136,202.5,202.48,4.9379]
[1739234530292,0.03266136,202.5,202.45,0.0329489]
[1739234530894,0.03266136,202.5,202.47,4.9381]
[1739234531196,0.03266136,202.5,202.45,0.0329489]
[1739234532894,4.97016136,202.5,202.45,0.0329489]
[1739234533094,0.03266136,202.5,202.45,0.0329489]
[1739234533294,1.4935,202.49,202.45,0.0329489]
[1739234533593,4.938,202.48,202.45,0.0329489]
[1739234533786,3.0489,202.49,202.45,0.0329489]
[1739234533988,1.4633,202.47,202.33,0.2314]
[1739234534194,1.4633,202.47,202.36,14.79124442]
[1739234535098,0.03649113,202.44,202.39,0.03643471]
[1739234535990,0.03649113,202.44,202.39,14.82767913]
[1739234536496,0.03649113,202.44,202.42,4.9392]
[1739234537702,3.0756,202.57,202.47,4.9381]
[1739234538390,3.0756,202.57,202.47,14.79124442]
[1739234538796,3.0756,202.57,202.49,4.9375]
[1739234539103,0.03148426,202.54,202.5,0.03305832]
[1739234539495,0.03148426,202.54,202.52,4.9369]
[1739234543300,0.03148426,202.54,202.5,0.03305832]
[1739234543594,0.03148426,202.54,202.53,4.9368]
[1739234544400,0.03148426,202.54,202.51,4.937]
[1739234544600,0.03148426,202.54,202.5,0.03305832]
[1739234545701,0.03148426,202.54,202.53,4.9368]
[1739234546699,1.5454,202.61,202.54,4.9365]
[1739234546905,1.5454,202.61,202.5,0.03305832]
[1739234547105,4.9351,202.6,202.43,14.79124442]
[1739234547504,1.5454,202.61,202.43,14.79124442]
[1739234548004,0.03729893,202.54,202.5,0.03375255]
[1739234549204,0.03729893,202.54,202.52,4.9369]
[1739234552507,14.79124442,202.63,202.5,4.97105255]
[1739234552708,14.79124442,202.63,202.5,0.03375255]
[1739234552907,14.79124442,202.63,202.44,0.2639]
[1739234553206,14.79124442,202.59,202.45,4.9385]
[1739234553406,1.535,202.58,202.41,26.35500737]
[1739234553805,0.03344262,202.54,202.5,0.03670528]
[1739234558613,0.00074262,202.54,202.5,0.03670528]
[1739234558817,1.4782,202.7,202.5,0.03670528]
[1739234559317,1.4782,202.7,202.54,4.9365]
[1739234559611,1.4782,202.7,202.49,14.79124442]
[1739234559814,4.9333,202.68,202.56,4.936]
[1739234560015,0.03091007,202.62,202.57,0.03352535]
[1739234560417,0.03091007,202.62,202.52,4.9368]
[1739234560617,0.03091007,202.62,202.57,0.03630238]
[1739234560914,4.9342,202.64,202.57,0.03630238]
[1739234561116,0.03091007,202.62,202.57,0.03630238]
[1739234561318,0.03091007,202.62,202.49,14.79124442]
[1739234561509,0.03091007,202.62,202.57,0.03459642]
[1739234561710,20.44401511,202.7,202.57,14.82584084]
[1739234561909,20.44401511,202.7,202.41,8.63903578]
[1739234561910,17.91294442,202.69,202.51,14.79124442]
[1739234562111,4.9338,202.66,202.51,14.79124442]
[1739234562316,17.91294442,202.69,202.51,14.79124442]
[1739234562818,4.9339,202.65,202.58,0.03608728]
[1739234563618,17.91294442,202.69,202.58,0.03608728]
[1739234563817,4.9331,202.68,202.58,0.03608728]
[1739234564122,17.91294442,202.69,202.58,0.03608728]
[1739234564322,4.9344,202.63,202.58,0.03608728]
[1739234565015,19.72514442,202.65,202.58,0.03608728]
[1739234565212,14.79124442,202.65,202.58,0.03608728]
[1739234565823,17.91294442,202.69,202.58,0.03608728]
[1739234566318,4.9337,202.66,202.58,0.03608728]
[1739234566617,17.91294442,202.69,202.58,0.03608728]
[1739234566922,4.9337,202.66,202.58,0.03608728]
[1739234567118,17.91294442,202.69,202.58,0.03608728]
[1739234567422,4.9337,202.66,202.58,0.03608728]
[1739234567619,17.91294442,202.69,202.58,0.03608728]
[1739234569318,4.9339,202.65,202.58,0.03608728]
[1739234570022,17.91294442,202.69,202.58,0.03608728]
[1739234570219,3.1217,202.69,202.58,0.03608728]
[1739234570626,3.1217,202.69,202.59,14.79124442]
[1739234571623,8.0546,202.69,202.59,14.79124442]
[1739234571824,20.44401511,202.79,202.63,14.79124442]
[1739234572019,4.5602,202.78,202.67,14.79124442]
[1739234572220,4.5602,202.78,202.71,14.79124442]
[1739234572425,20.44401511,202.79,202.62,14.79124442]
[1739234572426,20.44401511,202.8,202.76,14.79124442]
[1739234572626,54.52964464,202.81,202.79,4.9304]
[1739234572817,81.82797047,202.82,202.8,14.79124442]
[1739234573020,10.1396595,202.82,202.8,14.79124442]
[1739234573524,10.1396595,202.82,202.81,4.9299]
[1739234573820,134.54817551,202.84,202.8,14.79124442]
[1739234574218,99.99123952,202.84,202.8,14.79124442]
[1739234574622,99.75713952,202.84,202.82,4.9296]
[1739234574826,179.65085432,202.85,202.8,14.79124442]
[1739234575229,179.65085432,202.85,202.8,14.82274384]
[1739234575433,179.65085432,202.85,202.8,0.03149942]
[1739234576624,182.63185432,202.85,202.8,0.03149942]
[1739234576825,182.63185432,202.85,202.72,14.79124442]
[1739234576826,2.981,202.85,202.75,26.35500737]
[1739234577628,4.9294,202.84,202.75,26.35500737]
[1739234577829,2.981,202.85,202.75,26.35500737]
[1739234578032,0.03088407,202.82,202.77,0.03231711]
[1739234578233,1.4729,202.94,202.8,23.9080007]
[1739234578623,25.3809007,202.94,202.75,26.35500737]
[1739234578932,25.3809007,202.94,202.73,35.60752587]
[1739234579426,25.3809007,202.94,202.81,0.03773578]
[1739234579830,25.3809007,202.94,202.73,35.60752587]
[1739234579831,23.9080007,202.9,202.73,35.60752587]
[1739234580028,3.1058,202.89,202.77,26.35500737]
[1739234580333,3.1058,202.89,202.85,0.03202056]
[1739234580533,3.1058,202.89,202.77,26.35500737]
[1739234580732,4.929,202.85,202.77,26.35500737]
[1739234580927,23.9080007,202.86,202.77,23.93730737]
[1739234581131,23.9080007,202.82,202.77,2.17810737]
[1739234581334,23.9080007,202.82,202.73,5.11077333]
[1739234581731,4.9312,202.76,202.75,0.03469427]
[1739234581931,4.9312,202.76,202.73,5.11077333]
[1739234582226,0.03125977,202.8,202.73,5.11077333]
[1739234583132,0.03125977,202.8,202.74,0.03346747]
[1739234583826,0.03125977,202.8,202.77,23.9080007]
[1739234584736,0.03125977,202.8,202.74,3.11856747]
[1739234587233,0.03125977,202.8,202.74,0.03346747]
[1739234587635,4.9311,202.77,202.74,0.03346747]
[1739234588338,0.03125977,202.8,202.74,0.03346747]
[1739234589036,4.9314,202.75,202.74,0.03346747]
[1739234589232,0.03125977,202.8,202.74,0.03346747]
[1739234592949,4.9312,202.76,202.74,0.03346747]
[1739234593149,23.9080007,202.79,202.74,0.03346747]
[1739234593546,0.03125977,202.8,202.74,0.03346747]
[1739234594053,4.9314,202.75,202.74,0.03346747]
[1739234594248,23.9080007,202.79,202.69,4.81577162]
[1739234594850,4.9319,202.73,202.69,4.81577162]
[1739234595352,23.9080007,202.79,202.69,4.81577162]
[1739234595649,0.03220768,202.73,202.69,4.85369112]
[1739234595845,0.03220768,202.73,202.69,0.0379195]
[1739234598353,0.90658496,202.79,202.69,0.0379195]
[1739234598849,14.72198921,202.76,202.69,0.0379195]
[1739234599152,14.72198921,202.72,202.64,4.82825985]
[1739234599355,1.4816,202.71,202.64,4.82825985]
[1739234599554,4.9329,202.69,202.64,4.82825985]
[1739234599749,1.4816,202.71,202.64,4.82825985]
[1739234600050,14.72198921,202.76,202.64,4.82825985]
[1739234600250,0.90677356,202.75,202.64,4.82825985]
[1739234600447,0.03694602,202.7,202.65,0.03272806]
[1739234602155,4.9336,202.66,202.65,0.03272806]
[1739234602752,14.72198921,202.68,202.59,15.59402618]
[1739234602948,4.9348,202.62,202.59,15.59402618]
[1739234603153,19.76198921,202.68,202.59,15.59402618]
[1739234603348,4.9341,202.64,202.59,15.59402618]
[1739234603553,19.76198921,202.68,202.59,15.59402618]
[1739234603753,0.90708677,202.67,202.59,15.59402618]
[1739234604154,0.0375477,202.66,202.61,0.03409485]
[1739234604553,4.9346,202.62,202.61,0.03409485]
[1739234605754,4.9342,202.64,202.61,0.03409485]
[1739234605953,0.0375477,202.66,202.61,0.03409485]
[1739234607058,4.9341,202.64,202.61,0.03409485]
[1739234607254,0.0375477,202.66,202.61,0.03409485]
[1739234607657,4.9341,202.64,202.61,0.03409485]
[1739234608055,0.0375477,202.66,202.61,0.03409485]
[1739234609757,14.72198921,202.63,202.43,52.83820459]
[1739234609957,14.72198921,202.59,202.44,1.561]
[1739234610256,14.72198921,202.55,202.44,1.561]
[1739234610458,4.9375,202.5,202.44,1.561]
[1739234610658,19.68198921,202.55,202.44,1.561]
[1739234610858,0.03736036,202.49,202.45,0.03587341]
[1739234613159,0.03736036,202.49,202.46,4.9384]
[1739234613365,0.90747442,202.61,202.45,14.75786262]
[1739234613565,19.66198921,202.62,202.45,14.75786262]
[1739234613766,0.90746411,202.61,202.45,19.66058921]
[1739234613962,14.72198921,202.58,202.44,1.561]
[1739234614363,0.90750275,202.57,202.44,1.561]
[1739234614563,0.03690053,202.53,202.49,0.03171839]
[1739234622073,19.62198921,202.62,202.49,0.03171839]
[1739234622273,19.62198921,202.62,202.46,1.4567]
[1739234622972,0.90738326,202.61,202.46,1.4567]
[1739234623175,0.03401098,202.56,202.52,0.03676157]
[1739234624171,4.9363,202.55,202.52,0.03676157]
[1739234624376,0.03401098,202.56,202.52,0.03676157]
[1739234624570,14.72198921,202.55,202.52,0.03676157]
[1739234625967,4.9367,202.54,202.52,0.03676157]
[1739234626173,14.72198921,202.55,202.52,0.03676157]
[1739234626675,4.9368,202.54,202.52,0.03676157]
[1739234626875,14.72198921,202.55,202.52,0.03676157]
[1739234627179,4.9365,202.54,202.52,0.03676157]
[1739234627377,14.72198921,202.55,202.52,0.03676157]
[1739234627778,0.03401098,202.56,202.52,0.03676157]
[1739234629184,0.03401098,202.56,202.52,1.63086157]
[1739234629587,0.03401098,202.56,202.53,1.5156]
[1739234633684,0.03401098,202.56,202.52,0.03676157]
[1739234634088,4.9368,202.53,202.52,0.03676157]
[1739234635984,14.72198921,202.55,202.44,37.1316985]
[1739234636185,4.9383,202.47,202.44,37.1316985]
[1739234636384,14.72198921,202.55,202.44,37.1316985]
[1739234636590,4.9384,202.47,202.44,35.5841985]
[1739234636782,14.72198921,202.51,202.44,35.5841985]
[1739234637188,0.0325896,202.5,202.45,0.03354067]
[1739234637486,0.0325896,202.5,202.44,35.5841985]
[1739234637690,0.0325896,202.5,202.45,0.03503404]
[1739234638791,4.8,202.56,202.45,0.03503404]
[1739234638991,14.72198921,202.63,202.45,0.03503404]
[1739234639193,14.72198921,202.63,202.44,14.72198921]
[1739234639386,4.9341,202.65,202.48,14.72198921]
[1739234639585,4.9341,202.65,202.49,3.0548]
[1739234639793,4.84,202.65,202.49,3.0548]
[1739234640096,0.03484712,202.59,202.55,0.03640206]
[1739234640298,88.84,202.66,202.55,0.03640206]
[1739234641402,0.03150895,202.63,202.55,0.03640206]
[1739234642995,4.9346,202.62,202.55,0.03640206]
[1739234644494,0.03150895,202.63,202.55,0.03640206]
[1739234644495,4.9348,202.61,202.55,0.03640206]
[1739234644700,14.75349816,202.63,202.55,0.03640206]
[1739234645700,0.90733839,202.62,202.55,0.03640206]
[1739234646098,14.75349816,202.63,202.55,0.03640206]
[1739234647801,4.9351,202.6,202.55,0.03640206]
[1739234648197,14.75349816,202.63,202.55,0.03640206]
[1739234649202,4.9349,202.61,202.55,0.03640206]
[1739234649403,14.75349816,202.63,202.55,0.03640206]
[1739234651008,4.9349,202.61,202.55,0.03640206]
[1739234651304,14.75349816,202.63,202.55,0.03640206]
[1739234651503,4.936,202.56,202.55,0.03640206]
[1739234652506,4.76,202.56,202.38,6.71473654]
[1739234652708,14.72198921,202.53,202.41,1.5132]
[1739234653102,4.9387,202.45,202.41,1.5132]
[1739234653403,14.72198921,202.49,202.38,6.71473654]
[1739234653608,4.9394,202.43,202.41,0.03411854]
[1739234654105,0.03575446,202.45,202.41,0.03411854]
[1739234654303,4.939,202.44,202.41,0.03411854]
[1739234654698,0.03575446,202.45,202.41,0.03411854]
[1739234669215,14.75774367,202.45,202.41,0.03411854]
[1739234669517,14.75774367,202.45,202.34,1.5132]
[1739234669713,19.69664367,202.45,202.34,1.5132]
[1739234670009,14.75774367,202.45,202.34,1.5132]
[1739234670412,0.03575446,202.45,202.34,1.5132]
[1739234670612,0.03575446,202.45,202.37,0.03464446]
[1739234672218,0.03575446,202.45,202.38,4.9404]
[1739234672917,0.03575446,202.45,202.37,4.97534446]
[1739234673215,0.03575446,202.45,202.37,0.03464446]
[1739234676521,0.03575446,202.45,202.38,4.9404]
[1739234676718,0.03575446,202.45,202.37,0.03464446]
[1739234677121,0.03575446,202.45,202.37,4.97524446]
[1739234677314,0.03575446,202.45,202.37,0.03464446]
[1739234677516,0.03575446,202.45,202.38,4.9404]
[1739234677722,0.03575446,202.45,202.37,0.03464446]
[1739234678722,0.03575446,202.45,202.37,4.97524446]
[1739234678919,0.03575446,202.45,202.37,0.03464446]
[1739234679321,4.97445446,202.45,202.37,0.03464446]
[1739234680513,4.939,202.44,202.37,0.03464446]
[1739234681018,0.03575446,202.45,202.37,0.03464446]
[1739234681019,9.22903681,202.43,202.37,0.03464446]
[1739234681218,4.9404,202.38,202.37,0.03464446]
[1739234683220,0.03306056,202.4,202.37,0.03464446]
[1739234687222,9.5182,202.48,202.37,0.03464446]
[1739234687424,4.58,202.48,202.37,0.03464446]
[1739234688126,9.518,202.48,202.38,4.9404]
[1739234688327,0.03160243,202.45,202.39,1.5518]
[1739234688827,0.03160243,202.45,202.4,0.03304423]
[1739234690124,20.55908739,202.57,202.47,4.9382]
[1739234690320,20.55908739,202.57,202.48,3.0914]
[1739234691221,0.03390354,202.55,202.5,0.03674928]
[1739234695529,4.9365,202.54,202.5,0.03674928]
[1739234696931,19.7477031,202.55,202.5,0.03674928]
[1739234697932,14.8114031,202.55,202.5,0.03674928]
[1739234698132,4.9365,202.54,202.5,0.03674928]
[1739234698530,14.8114031,202.55,202.5,0.03674928]
[1739234699131,19.7477031,202.55,202.5,0.03674928]
[1739234699333,0.03390354,202.55,202.5,0.03674928]
[1739234700426,14.8114031,202.55,202.5,0.03674928]
[1739234700930,4.9369,202.53,202.5,0.03674928]
[1739234701135,0.03390354,202.55,202.5,0.03674928]
[1739234704230,0.03390354,202.55,202.51,9.21877915]
[1739234704432,6.0643,202.66,202.54,9.21877915]
[1739234704730,4.9343,202.64,202.54,9.21877915]
[1739234704935,4.9343,202.64,202.52,1.4772]
[1739234704936,6.0643,202.66,202.52,1.4772]
[1739234705336,9.21877915,202.64,202.52,1.4772]
[1739234705537,0.03223966,202.61,202.57,0.03680681]
[1739234706440,4.96713966,202.61,202.57,0.03680681]
[1739234706637,0.03223966,202.61,202.57,0.03680681]
[1739234707542,4.9355,202.59,202.57,0.03680681]
[1739234707740,9.25101881,202.61,202.57,0.03680681]
[1739234708137,4.9355,202.58,202.57,0.03680681]
[1739234708336,9.21877915,202.58,202.46,4.9384]
[1739234708539,9.21877915,202.55,202.47,1.595]
[1739234708734,4.9368,202.53,202.41,1.5856]
[1739234709046,9.21877915,202.52,202.42,1.595]
[1739234709240,9.21877915,202.52,202.42,6.5344]
[1739234709543,0.03499979,202.49,202.45,0.03383577]
[1739234709841,4.97279979,202.49,202.45,0.03383577]
[1739234710538,9.25377894,202.49,202.45,0.03383577]
[1739234711145,4.9383,202.47,202.45,0.03383577]
[1739234711740,4.9385,202.46,202.45,0.03383577]
[1739234711941,9.21877915,202.46,202.37,28.27730886]
[1739234712138,9.21877915,202.46,202.37,1.5724]
[1739234712444,4.9395,202.42,202.37,1.5724]
[1739234712747,9.21877915,202.46,202.37,1.5724]
[1739234713144,0.03153359,202.44,202.39,0.03136672]
[1739234715544,0.03153359,202.44,202.39,4.97136672]
[1739234715745,0.03153359,202.44,202.39,0.03136672]
[1739234716047,0.03153359,202.44,202.4,4.9399]
[1739234716247,0.03153359,202.44,202.39,0.03136672]
[1739234716643,0.03153359,202.44,202.4,4.9399]
[1739234717044,0.03153359,202.44,202.42,4.9394]
[1739234717249,0.03153359,202.44,202.4,1.464]
[1739234717645,0.03153359,202.44,202.4,6.4039]
[1739234718645,0.03153359,202.44,202.4,1.464]
[1739234722050,0.03153359,202.44,202.39,0.03136672]
[1739234723752,4.9394,202.43,202.39,0.03136672]
[1739234723948,0.03153359,202.44,202.39,0.03136672]
[1739234724149,14.76918004,202.43,202.39,0.03136672]
[1739234724748,19.70858004,202.43,202.39,0.03136672]
[1739234725251,14.76918004,202.43,202.39,0.03136672]
[1739234727456,14.76918004,202.43,202.3,4.5901]
[1739234727651,4.9406,202.38,202.3,4.5901]
[1739234728757,0.03211721,202.36,202.32,0.03453922]
[1739234731158,14.76918004,202.35,202.32,0.03453922]
[1739234731560,14.76918004,202.35,202.22,3.1062]
[1739234732355,0.90861351,202.34,202.22,3.1062]
[1739234732555,0.03789457,202.3,202.26,0.03201815]
[1739234735564,9.24668247,202.27,202.26,0.03201815]
[1739234736560,9.24668247,202.27,202.15,2.9746]
[1739234737763,0.03313971,202.23,202.19,0.03599734]
[1739234743977,15.03368247,202.33,202.21,4.9443]
[1739234744475,4.28,202.33,202.23,4.944]
[1739234744675,4.28,202.33,202.24,1.5184]
[1739234745067,0.03761272,202.31,202.26,0.0313162]
[1739234745773,0.03761272,202.31,202.28,4.9428]
[1739234745974,0.03761272,202.31,202.26,0.0313162]
[1739234747878,9.24668247,202.39,202.26,0.0313162]
[1739234748079,9.24668247,202.39,202.25,9.24668247]
[1739234748774,9.24668247,202.39,202.27,4.9429]
[1739234749080,0.03420498,202.34,202.3,0.03556067]
[1739234754084,4.97560498,202.34,202.3,0.03556067]
[1739234754576,0.03420498,202.34,202.3,0.03556067]
[1739234760684,9.24668247,202.33,202.3,0.03556067]
[1739234761184,0.03420498,202.34,202.3,0.03556067]
[1739234763494,9.24668247,202.32,202.3,0.03556067]
[1739234764694,0.03420498,202.34,202.3,0.03556067]
[1739234767897,13.40668247,202.41,202.3,0.03556067]
[1739234768097,9.24668247,202.41,202.3,0.03556067]
[1739234768996,0.03591742,202.38,202.3,0.03556067]
[1739234769197,0.03591742,202.38,202.3,4.97786067]
[1739234769396,0.03591742,202.38,202.3,0.03556067]
[1739234773199,0.03591742,202.38,202.3,4.97786067]
[1739234774000,0.03591742,202.38,202.3,0.03556067]
[1739234774202,0.03591742,202.38,202.31,9.24668247]
[1739234774397,0.03591742,202.38,202.32,4.6007]
[1739234777702,5.90986655,202.37,202.32,4.6007]
[1739234777903,5.90986655,202.35,202.3,0.03556067]
[1739234778103,5.90986655,202.33,202.3,0.03556067]
[1739234779304,5.90986655,202.31,202.3,0.03556067]
[1739234780494,5.90986655,202.31,202.21,1.549]
[1739234780699,5.90986655,202.25,202.21,1.549]
[1739234781700,0.0361865,202.25,202.21,1.58241564]
[1739234782902,0.0361865,202.25,202.21,0.03341564]
[1739234783104,9.2446846,202.23,202.21,0.03341564]
[1739234784401,9.2446846,202.23,202.11,1.526]
[1739234784597,9.2446846,202.2,202.11,1.526]
[1739234784804,14.1895846,202.2,202.11,1.526]
[1739234785002,9.2446846,202.2,202.11,1.526]
[1739234785509,9.2446846,202.17,202.13,0.03309969]
[1739234785704,13.4046846,202.17,202.13,0.03309969]
[1739234785904,13.4046846,202.17,202.07,1.4673]
[1739234786105,13.44143606,202.17,202.13,0.03678536]
[1739234788508,0.03675146,202.17,202.13,0.03678536]
[1739234788912,0.03675146,202.17,202.14,4.9462]
[1739234789700,0.03675146,202.17,202.13,0.03678536]
[1739234789701,0.03675146,202.17,202.15,4.946]
[1739234789906,1.4942,202.28,202.15,9.2446846]
[1739234790112,13.4246846,202.29,202.16,1.5283]
[1739234790410,4.18,202.29,202.18,9.2446846]
[1739234790610,9.2446846,202.26,202.16,1.5283]
[1739234790808,9.2446846,202.23,202.16,1.5283]
[1739234791208,0.03179197,202.22,202.17,0.03449162]
[1739234793210,0.03179197,202.22,202.18,4.9453]
[1739234794009,0.03179197,202.22,202.17,0.03449162]
[1739234796509,0.03179197,202.22,202.18,4.9451]
[1739234796816,0.03179197,202.22,202.17,0.03449162]
[1739234797716,0.03179197,202.22,202.17,4.97989162]
[1739234798014,0.03179197,202.22,202.17,0.03449162]
[1739234798414,9.2446846,202.32,202.18,9.2446846]
[1739234798718,4.16,202.33,202.21,9.2446846]
[1739234798907,9.2446846,202.38,202.24,9.2446846]
[1739234799217,13.4046846,202.38,202.25,1.5472]
[1739234799618,0.03480183,202.34,202.29,0.03341887]
[1739234802307,4.97620183,202.34,202.29,0.03341887]
[1739234802514,0.03480183,202.34,202.29,0.03341887]
[1739234803212,14.1865846,202.32,202.29,0.03341887]
[1739234803409,9.2446846,202.32,202.29,0.03341887]
[1739234804122,9.2446846,202.32,202.19,1.4598]
[1739234804310,9.2446846,202.28,202.19,1.4598]
[1739234805217,0.03679857,202.26,202.21,0.03143]
[1739234808525,4.17679857,202.26,202.21,0.03143]
[1739234809124,4.9439,202.24,202.21,0.03143]
[1739234809324,18.96973173,202.26,202.21,0.03143]
[1739234810425,4.9443,202.22,202.21,0.03143]
[1739234811520,4.9441,202.24,202.21,0.03143]
[1739234812325,1.5932,202.25,202.21,0.03143]
[1739234812522,4.9443,202.22,202.21,0.03143]
[1739234812723,1.5932,202.25,202.21,0.03143]
[1739234812923,6.5368,202.25,202.21,0.03143]
[1739234813126,1.5932,202.25,202.21,0.03143]
[1739234813828,14.82973173,202.26,202.21,0.03143]
[1739234814124,0.03679857,202.26,202.21,0.03143]
[1739234815321,20.55908739,202.35,202.21,0.03143]
[1739234815624,4.12,202.36,202.15,14.79293316]
[1739234816327,4.9414,202.34,202.15,208.79293316]
[1739234816528,0.0354219,202.28,202.23,0.0355692]
[1739234820133,5.5759,202.39,202.24,14.79293316]
[1739234820433,5.84903289,202.38,202.27,4.9431]
[1739234820633,14.79293316,202.37,202.25,1.4572]
[1739234820831,0.90854229,202.36,202.21,1.4806]
[1739234821027,4.9421,202.31,202.21,1.4806]
[1739234821532,0.03554965,202.28,202.24,0.03569957]
[1739234828836,0.03554965,202.28,202.16,1.5894]
[1739234828837,14.79293316,202.25,202.16,1.5894]
[1739234829230,14.79293316,202.29,202.09,29.81250886]
[1739234829231,14.79293316,202.21,202.09,29.81250886]
[1739234829535,18.89293316,202.21,202.1,1.5894]
[1739234830036,0.03446744,202.18,202.13,0.03472877]
[1739234831040,4.9458,202.17,202.13,0.03472877]
[1739234832435,4.9461,202.15,202.13,0.03472877]
[1739234832643,14.79293316,202.17,202.13,0.03472877]
[1739234833736,14.79293316,202.17,202.05,1.4758]
[1739234833938,4.9463,202.15,202.05,1.4758]
[1739234834235,14.79293316,202.17,202.05,1.4758]
[1739234834834,0.03790493,202.13,202.09,0.03225099]
[1739234835645,14.83083809,202.13,202.09,0.03225099]
[1739234837143,4.9469,202.12,202.09,0.03225099]
[1739234837544,14.83083809,202.13,202.09,0.03225099]
[1739234838148,19.77743809,202.13,202.09,0.03225099]
[1739234838947,4.9468,202.12,202.09,0.03225099]
[1739234840447,14.83083809,202.13,202.09,0.03225099]
[1739234840647,19.77733809,202.13,202.09,0.03225099]
[1739234841047,4.9469,202.12,202.09,0.03225099]
[1739234842448,14.83083809,202.13,202.09,0.03225099]
[1739234842851,4.9468,202.12,202.09,0.03225099]
[1739234843653,0.03790493,202.13,202.09,0.03225099]
[1739234843949,9.26048423,202.11,202.09,0.03225099]
[1739234844340,14.20758423,202.11,202.09,0.03225099]
[1739234844542,9.26048423,202.11,202.09,0.03225099]
[1739234844746,9.26048423,202.11,202.0,3.0189]
[1739234844951,9.26048423,202.08,202.0,3.0189]
[1739234845749,9.26048423,202.05,202.0,3.0189]
[1739234846052,9.26048423,202.05,202.02,0.0345596]
[1739234846246,4.9495,202.01,201.92,1.4939]
[1739234846443,9.26048423,202.0,201.92,1.4939]
[1739234847350,9.26048423,201.97,201.94,0.03701692]
[1739234847747,14.84009976,201.97,201.94,0.03701692]
[1739234849552,14.84009976,201.97,201.87,3.0232]
[1739234849854,14.84009976,201.97,201.86,1.4939]
[1739234850748,14.84009976,201.97,201.89,0.03367363]
[1739234850953,0.0358044,201.94,201.89,0.03367363]
[1739234856355,14.84009976,201.93,201.89,0.03367363]
[1739234857358,14.84009976,201.93,201.81,1.4556]
[1739234857657,14.84009976,201.89,201.81,1.4556]
[1739234857854,4.04,201.88,201.81,1.4556]
[1739234858558,0.03336291,201.87,201.82,0.03404381]
[1739234860162,14.84009976,201.85,201.82,0.03404381]
[1739234860560,14.84009976,201.85,201.76,1.4822]
[1739234860761,14.84009976,201.81,201.71,3.1503]
[1739234861361,14.84009976,201.81,201.71,8.107]
[1739234861563,14.84009976,201.81,201.71,3.1503]
[1739234861761,14.84009976,201.81,201.74,0.03434006]
[1739234861762,0.03762157,201.78,201.74,0.03434006]
[1739234865861,4.04,201.77,201.74,0.03434006]
[1739234866070,18.88009976,201.77,201.74,0.03434006]
[1739234867459,4.9558,201.75,201.68,1.4822]
[1739234868368,18.88009976,201.77,201.68,1.4822]
[1739234868369,4.9556,201.76,201.68,1.4822]
[1739234868669,0.0360441,201.74,201.69,0.03650842]
[1739234870464,9.29323615,201.72,201.69,0.03650842]
[1739234873866,0.0360441,201.74,201.69,0.03650842]
[1739234876672,0.0360441,201.74,201.69,3.03080842]
[1739234877074,0.0360441,201.74,201.7,4.9569]
[1739234877274,0.0360441,201.74,201.69,3.03080842]
[1739234880978,0.0360441,201.74,201.69,7.98810842]
[1739234881179,14.8663333,201.85,201.69,3.03080842]
[1739234881382,4.26,201.82,201.69,2.9943]
[1739234881570,14.8663333,201.85,201.74,4.956]
[1739234881777,19.1263333,201.85,201.74,4.956]
[1739234881976,19.1263333,201.85,201.69,17.8606333]
[1739234882177,4.26,201.87,201.69,17.8606333]
[1739234882374,0.03776567,201.79,201.75,0.03709922]
[1739234882976,19.1263333,201.89,201.75,0.03709922]
[1739234883278,19.1263333,201.89,201.79,4.9548]
[1739234883779,24.0787333,201.89,201.77,4.9551]
[1739234883981,19.1263333,201.89,201.78,1.4893]
[1739234884177,0.03646178,201.85,201.81,0.03528884]
[1739234889084,4.9539,201.84,201.81,0.03528884]
[1739234889286,14.90279508,201.85,201.81,0.03528884]
[1739234889685,19.85639508,201.85,201.81,0.03528884]
[1739234889888,14.90279508,201.85,201.74,1.6066]
[1739234890280,14.8663333,201.81,201.74,1.6066]
[1739234890985,0.03307489,201.8,201.75,0.03167979]
[1739234891740,0.03307489,201.8,201.75,4.98747979]
[1739234891983,0.03307489,201.8,201.75,0.03167979]
[1739234892582,0.03307489,201.8,201.77,4.9551]
[1739234892785,0.03307489,201.8,201.75,0.03167979]
[1739234893087,4.22,201.88,201.75,0.03167979]
[1739234893388,4.22,201.88,201.74,1.6066]
[1739234893783,4.22,201.88,201.78,4.9549]
[1739234893981,4.22,201.88,201.79,3.0506]
[1739234894382,0.03410404,201.86,201.81,0.03296413]
[1739234897290,0.03410404,201.86,201.81,4.98736413]